bitfinex/quotes_SOLUSD_20220114
["timestamp","ask_amount","ask_price","bid_price","bid_amount"]
[1642149546655,2.737,146.15,146.07,0.25]
[1642149546957,2.987,146.15,146.07,6.25]
[1642149548160,2.987,146.15,146.07,0.25]
[1642149548358,2.987,146.15,146.06,29.5459]
[1642149548560,2.987,146.15,146.06,32.2829]
[1642149549059,2.987,146.15,146.06,32.0229]
[1642149549258,4.66385959,146.15,146.06,32.0229]
[1642149549458,1.92685959,146.15,146.06,0.25]
[1642149549658,31.4608046,146.13,146.06,0.25]
[1642149549862,31.4608046,146.13,146.04,3.63613225]
[1642149549863,9.86,146.12,146.04,0.25]
[1642149550059,10.11,146.12,146.03,6.62313225]
[1642149550462,10.11,146.12,146.03,6.37313225]
[1642149551063,10.11,146.12,146.03,2.737]
[1642149551261,10.11,146.12,146.02,2.738]
[1642149551862,10.11,146.12,146.02,2.988]
[1642149552085,1.67685959,146.11,146.02,2.988]
[1642149552488,1.92685959,146.11,146.02,2.738]
[1642149552685,11.78685959,146.11,146.02,2.738]
[1642149552888,4.41485959,146.1,146.01,3.63613225]
[1642149553086,9.86,146.09,146.01,3.63613225]
[1642149553286,26.6977124,146.07,146.01,3.63613225]
[1642149553488,26.9477124,146.07,146.01,3.63613225]
[1642149553886,26.9477124,146.07,146.01,0.25]
[1642149554087,26.9477124,146.07,145.98,3.88613225]
[1642149554887,28.62457199,146.07,145.98,3.88613225]
[1642149555388,28.62457199,146.07,145.98,0.25]
[1642149555587,28.62457199,146.07,145.97,13.81252769]
[1642149556088,28.62457199,146.07,145.97,9.88613225]
[1642149556288,38.89647199,146.07,145.97,3.88613225]
[1642149557091,38.89647199,146.07,145.97,7.81329483]
[1642149558489,48.75647199,146.07,145.97,7.81329483]
[1642149558891,48.75647199,146.07,145.97,4.17716258]
[1642149559089,10.2737,146.05,145.97,4.17716258]
[1642149559593,10.5237,146.05,145.97,4.17716258]
[1642149559790,10.5237,146.05,145.97,0.25]
[1642149559991,10.5237,146.05,145.96,24.0269]
[1642149560590,0.25,146.05,145.96,24.0269]
[1642149560791,2.739,146.06,145.96,24.0269]
[1642149560990,2.739,146.06,145.97,2.739]
[1642149561192,2.739,146.06,145.96,26.7659]
[1642149561690,4.41585959,146.06,145.96,26.7659]
[1642149562091,4.66585959,146.06,145.96,26.7659]
[1642149562996,4.66585959,146.06,145.96,32.7659]
[1642149563192,2.739,146.06,145.96,37.0367]
[1642149563392,2.739,146.06,145.96,43.0367]
[1642149563592,36.5577124,146.07,145.97,3.92745636]
[1642149563996,36.5577124,146.07,145.97,10.43745636]
[1642149564193,39.2967124,146.07,145.97,10.43745636]
[1642149564594,39.5467124,146.07,145.97,10.43745636]
[1642149564996,39.5467124,146.07,145.97,4.43745636]
[1642149565196,39.5467124,146.07,145.98,3.92745636]
[1642149565598,39.5467124,146.07,145.98,4.17745636]
[1642149565998,39.5467124,146.07,145.98,10.17745636]
[1642149566397,10.11,146.07,145.98,10.17745636]
[1642149566897,10.11,146.07,145.98,6.25]
[1642149567299,41.79423841,146.11,145.99,67.85]
[1642149567499,31.93423841,146.11,146.0,23.8993]
[1642149567900,31.93423841,146.11,146.0,30.4093]
[1642149568800,31.93423841,146.11,146.01,3.9262285]
[1642149569000,31.93423841,146.11,146.02,2.738]
[1642149569401,31.93423841,146.11,146.02,8.988]
[1642149569999,32.18423841,146.11,146.02,8.988]
[1642149570601,32.18423841,146.11,146.02,2.988]
[1642149571001,32.18423841,146.11,146.02,8.988]
[1642149571203,32.18423841,146.11,146.03,3.72956585]
[1642149571602,32.18423841,146.11,146.03,3.97956585]
[1642149574205,42.45313841,146.11,146.03,3.97956585]
[1642149574405,42.45313841,146.11,146.03,3.72956585]
[1642149574604,42.45313841,146.11,146.03,3.97956585]
[1642149574805,32.18423841,146.11,146.03,3.97956585]
[1642149575407,42.45333841,146.11,146.03,3.97956585]
[1642149576010,42.20333841,146.11,146.03,3.97956585]
[1642149576214,42.45333841,146.11,146.03,3.97956585]
[1642149576709,32.18423841,146.11,146.03,3.97956585]
[1642149578311,34.92223841,146.11,146.03,3.97956585]
[1642149579111,55.05123841,146.11,146.03,3.72956585]
[1642149579315,0.30039905,146.08,146.0,3.63613225]
[1642149579516,12.598,146.07,146.0,3.63613225]
[1642149579711,67.85,146.06,146.0,3.63613225]
[1642149579914,36.67802295,146.05,146.0,3.63613225]
[1642149580314,36.92802295,146.05,145.94,3.92821643]
[1642149580916,10.275,146.04,145.94,3.92821643]
[1642149581216,12.599,146.03,145.93,3.63613225]
[1642149581415,9.86,146.02,145.92,50.72723225]
[1642149581615,2.74,146.01,145.92,50.72723225]
[1642149582013,2.99,146.01,145.92,57.23723225]
[1642149582214,2.99,146.01,145.92,34.02823225]
[1642149582215,2.74,146.01,145.92,34.02823225]
[1642149582416,2.99,146.01,145.92,30.3921]
[1642149582815,2.74,146.01,145.93,67.85]
[1642149583016,12.6,146.06,145.93,74.36]
[1642149583317,12.6,146.06,145.94,24.4652]
[1642149583516,12.6,146.06,145.94,30.7152]
[1642149583918,26.29311417,146.05,145.94,30.7152]
[1642149584117,12.599,146.04,145.94,47.65521191]
[1642149584319,12.599,146.04,145.94,41.65521191]
[1642149584816,12.599,146.04,145.94,37.727]
[1642149585017,12.849,146.04,145.94,43.727]
[1642149585518,23.1228,146.04,145.94,33.4542]
[1642149585944,12.849,146.04,145.94,33.4542]
[1642149586846,23.1228,146.04,145.94,33.4542]
[1642149587047,12.849,146.04,145.94,33.4542]
[1642149587246,12.599,146.04,145.94,33.4542]
[1642149587646,9.86,146.04,145.94,33.4542]
[1642149588347,9.86,146.04,145.94,43.7269]
[1642149588554,9.86,146.04,145.95,3.92799059]
[1642149588754,9.86,146.04,145.96,2.739]
[1642149588951,9.86,146.04,145.96,2.989]
[1642149589349,20.1339,146.04,145.96,2.989]
[1642149589749,9.86,146.04,145.96,2.989]
[1642149589950,10.11,146.04,145.96,2.989]
[1642149590351,9.86,146.04,145.96,2.989]
[1642149591555,10.11,146.04,145.96,2.989]
[1642149591751,10.11,146.04,145.96,8.989]
[1642149591952,10.11,146.04,145.96,2.989]
[1642149592650,10.11,146.04,145.96,2.739]
[1642149593051,10.11,146.04,145.96,2.999]
[1642149593654,10.11,146.04,145.96,19.2703]
[1642149593852,10.11,146.04,145.96,19.5203]
[1642149594254,9.86,146.04,145.96,19.5203]
[1642149594453,26.29311417,146.05,145.96,19.5203]
[1642149595457,26.29311417,146.05,145.97,3.92737961]
[1642149595655,22.6879,146.08,145.98,2.739]
[1642149596057,22.6879,146.08,145.98,3.249]
[1642149596558,23.75603201,146.07,145.98,9.249]
[1642149597056,23.75603201,146.07,145.98,77.099]
[1642149597259,23.75603201,146.07,145.98,87.3689]
[1642149597458,12.599,146.08,145.98,87.3689]
[1642149597862,12.849,146.08,145.98,87.3689]
[1642149598560,44.42096959,146.08,145.98,81.3689]
[1642149598759,44.42096959,146.08,145.98,13.5189]
[1642149599360,44.42096959,146.08,145.98,19.5189]
[1642149600259,54.69226959,146.08,145.98,9.249]
[1642149600659,54.69226959,146.08,145.98,6.51]
[1642149600861,54.69226959,146.08,145.98,0.51]
[1642149601061,54.69226959,146.08,145.97,36.96733225]
[1642149601461,54.69226959,146.08,145.97,47.23813225]
[1642149601664,44.17096959,146.08,145.97,47.23813225]
[1642149602364,41.43196959,146.08,145.97,43.602]
[1642149602964,41.68196959,146.08,145.97,43.602]
[1642149603364,41.68196959,146.08,145.98,3.92707534]
[1642149603562,41.68196959,146.08,145.99,2.739]
[1642149603964,41.68196959,146.08,145.99,9.249]
[1642149605467,41.68196959,146.08,145.99,19.5183]
[1642149605667,41.68196959,146.08,145.99,16.7793]
[1642149606069,41.68196959,146.08,145.99,84.6293]
[1642149606070,0.25,146.08,145.99,84.6293]
[1642149606267,0.25,146.08,145.99,16.7793]
[1642149606469,2.989,146.1,145.99,16.5193]
[1642149607068,26.38947353,146.09,145.99,10.5193]
[1642149607268,26.38947353,146.09,145.99,10.2693]
[1642149607470,26.38947353,146.09,145.98,6.37513225]
[1642149607471,1.67685959,146.07,145.98,3.63613225]
[1642149607670,67.85,146.05,145.98,1.01133225]
[1642149607871,2.739,146.04,145.97,0.02763225]
[1642149608071,31.01371259,146.02,145.97,0.02763225]
[1642149608280,2.739,146.01,145.97,0.02763225]
[1642149608475,2.989,146.01,145.97,0.02763225]
[1642149609074,2.989,146.01,145.94,0.25]
[1642149609475,10.526,146.01,145.92,2.99]
[1642149609675,10.526,146.01,145.92,0.25]
[1642149610273,0.25,146.01,145.92,0.25]
[1642149610475,34.00371259,146.02,145.92,0.25]
[1642149610674,34.00371259,146.02,145.91,2.99]
[1642149611274,34.00371259,146.02,145.91,8.99]
[1642149612198,34.00371259,146.02,145.92,0.73334729]
[1642149612498,34.00371259,146.02,145.92,24.37024729]
[1642149612798,2.99,146.02,145.92,24.37024729]
[1642149612999,2.99,146.02,145.92,30.88024729]
[1642149613600,0.25,146.02,145.93,67.85]
[1642149613800,0.25,146.02,145.95,10.2713]
[1642149614000,30.63933564,146.03,145.95,10.5213]
[1642149614599,0.25,146.03,145.95,10.5213]
[1642149614801,2.74,146.04,145.95,78.6313]
[1642149615000,12.599,146.08,145.96,2.739]
[1642149615202,1.67685959,146.06,145.97,24.9238]
[1642149615602,28.87082163,146.05,145.97,25.4338]
[1642149616006,29.12082163,146.05,145.97,25.4338]
[1642149616204,29.12082163,146.05,145.97,31.4338]
[1642149616607,29.12082163,146.05,145.97,31.1738]
[1642149616806,2.739,146.04,145.97,31.1738]
[1642149617010,2.989,146.04,145.97,31.1738]
[1642149617208,2.989,146.04,145.96,0.73334729]
[1642149617409,12.849,146.04,145.96,0.73334729]
[1642149617608,1.67685959,146.02,145.96,0.73334729]
[1642149618110,1.92685959,146.02,145.96,0.73334729]
[1642149618508,22.06205959,146.02,145.96,0.73334729]
[1642149618911,2.739,146.01,145.96,0.73334729]
[1642149619111,28.7457749,145.99,145.96,0.73334729]
[1642149619312,2.74,145.98,145.96,4.729e-05]
[1642149619514,10.2788,145.97,145.96,4.729e-05]
[1642149619711,13.0188,145.97,145.96,4.729e-05]
[1642149619913,37.0,145.96,145.86,2.74]
[1642149620111,2.741,145.95,145.84,30.17460837]
[1642149620313,24.96063707,145.94,145.84,30.17460837]
[1642149620513,10.282,145.93,145.84,30.17460837]
[1642149620913,10.532,145.93,145.84,24.9372]
[1642149621111,10.532,145.93,145.84,31.1872]
[1642149621512,10.532,145.93,145.84,30.9372]
[1642149621912,13.273,145.93,145.84,30.9372]
[1642149622315,13.273,145.93,145.85,3.92856563]
[1642149622514,13.273,145.93,145.85,9.92856563]
[1642149622719,13.273,145.93,145.85,10.17856563]
[1642149623114,13.273,145.93,145.85,3.92856563]
[1642149623315,23.133,145.93,145.85,3.92856563]
[1642149623615,24.80985959,145.93,145.81,5.23740837]
[1642149623816,32.10185959,145.93,145.81,5.23740837]
[1642149624222,32.10185959,145.93,145.82,6.73907246]
[1642149627227,10.2887,145.87,145.82,6.73907246]
[1642149627425,31.26247828,145.85,145.82,6.73907246]
[1642149627620,23.0,145.83,145.76,7.97840837]
[1642149627823,2.743,145.82,145.76,7.97840837]
[1642149628023,2.993,145.82,145.76,7.97840837]
[1642149628221,10.2907,145.81,145.76,7.97840837]
[1642149628421,10.11,145.82,145.76,7.97840837]
[1642149628625,0.25,145.81,145.76,7.97840837]
[1642149628822,10.11,145.82,145.76,2.741]
[1642149629020,10.11,145.82,145.76,2.991]
[1642149629222,20.3993,145.82,145.76,2.991]
[1642149629924,9.86,145.82,145.76,2.991]
[1642149630322,9.86,145.82,145.76,8.991]
[1642149630522,9.86,145.82,145.76,9.251]
[1642149631124,9.86,145.82,145.77,3.93217954]
[1642149631324,9.86,145.82,145.78,2.743]
[1642149631624,9.86,145.82,145.78,2.993]
[1642149632228,9.86,145.82,145.78,0.25]
[1642149632827,9.86,145.82,145.77,3.003]
[1642149632828,9.86,145.82,145.77,3.253]
[1642149633028,9.86,145.82,145.77,9.253]
[1642149633326,9.86,145.82,145.79,3.93196272]
[1642149633526,9.86,145.82,145.79,4.18196272]
[1642149633826,9.86,145.82,145.8,6.06439993]
[1642149634027,9.86,145.82,145.8,6.31439993]
[1642149634228,9.86,145.82,145.8,0.25]
[1642149635228,9.86,145.82,145.77,9.253]
[1642149636329,31.26247828,145.85,145.78,6.73963112]
[1642149636532,9.86,145.84,145.78,6.73963112]
[1642149636731,10.2894,145.82,145.78,6.73963112]
[1642149636933,10.2894,145.82,145.79,3.93197939]
[1642149637132,2.743,145.81,145.79,3.93197939]
[1642149637433,9.86,145.8,145.79,3.93197939]
[1642149637835,27.78054293,145.79,145.78,6.73963112]
[1642149638034,28.03054293,145.79,145.78,6.73963112]
[1642149638435,38.07204293,145.79,145.78,6.73963112]
[1642149639436,28.03054293,145.79,145.78,6.73963112]
[1642149640440,38.32214293,145.79,145.78,6.73963112]
[1642149640639,48.18214293,145.79,145.71,5.23740837]
[1642149640845,2.744,145.78,145.71,5.23740837]
[1642149641039,12.854,145.78,145.71,5.23740837]
[1642149641640,20.79,145.78,145.71,5.23740837]
[1642149641839,10.2948,145.75,145.71,5.23740837]
[1642149642042,22.74008506,145.74,145.71,5.23740837]
[1642149642242,22.74008506,145.74,145.72,6.74091948]
[1642149642441,22.99008506,145.74,145.72,6.74091948]
[1642149643044,33.28528506,145.74,145.72,6.74091948]
[1642149643244,22.74008506,145.74,145.72,6.74091948]
[1642149644346,10.2942,145.76,145.72,6.74091948]
[1642149644550,10.5442,145.76,145.72,6.74091948]
[1642149645546,29.13878933,145.75,145.72,6.74091948]
[1642149645787,10.2952,145.74,145.72,6.74091948]
[1642149646379,29.13878933,145.75,145.72,6.74091948]
[1642149646580,29.38878933,145.75,145.72,6.74091948]
[1642149646981,29.13878933,145.75,145.72,6.99091948]
[1642149647183,29.13878933,145.75,145.72,6.74091948]
[1642149647391,29.13878933,145.75,145.72,6.99091948]
[1642149647580,29.13878933,145.75,145.72,6.74091948]
[1642149649384,20.1527,145.78,145.73,6.06439993]
[1642149649683,10.11,145.78,145.73,6.06439993]
[1642149649983,10.11,145.78,145.72,6.74091948]
[1642149650183,10.11,145.78,145.72,6.99091948]
[1642149650587,25.30647095,145.77,145.72,6.74091948]
[1642149650984,25.55647095,145.77,145.72,6.74091948]
[1642149651190,35.41647095,145.77,145.72,6.74091948]
[1642149651384,45.70947095,145.77,145.72,6.74091948]
[1642149655190,1.67685959,145.76,145.72,6.74091948]
[1642149655387,10.2983,145.74,145.72,6.74091948]
[1642149655587,45.604,145.73,145.65,5.23740837]
[1642149655789,12.604,145.73,145.65,5.23740837]
[1642149655988,26.07999735,145.72,145.65,5.23740837]
[1642149656187,2.745,145.71,145.65,5.23740837]
[1642149656787,2.745,145.71,145.65,5.48740837]
[1642149657189,2.995,145.71,145.65,5.48740837]
[1642149657388,10.2978,145.71,145.65,0.25]
[1642149657588,35.93999735,145.72,145.62,17.22741349]
[1642149658589,46.23649735,145.72,145.63,3.93581349]
[1642149658990,35.93999735,145.72,145.63,14.49181349]
[1642149659191,35.93999735,145.72,145.63,14.23181349]
[1642149659590,35.93999735,145.72,145.63,14.49181349]
[1642149659991,35.93999735,145.72,145.63,14.74181349]
[1642149660492,35.93999735,145.72,145.64,3.93581349]
[1642149660894,35.93999735,145.72,145.64,4.18581349]
[1642149661293,36.18999735,145.72,145.64,4.18581349]
[1642149661695,38.93499735,145.72,145.64,4.18581349]
[1642149662294,38.93499735,145.72,145.65,3.93581349]
[1642149662594,49.23159735,145.72,145.65,3.93581349]
[1642149662794,46.48659735,145.72,145.65,3.93581349]
[1642149662994,46.48659735,145.72,145.64,3.93581349]
[1642149663896,10.2982,145.7,145.64,3.93581349]
[1642149664096,9.86,145.69,145.64,3.93581349]
[1642149664523,10.11,145.69,145.64,3.93581349]
[1642149664894,23.62162704,145.68,145.64,3.93581349]
[1642149665097,23.87162704,145.68,145.64,3.93581349]
[1642149665296,34.17142704,145.68,145.64,3.93581349]
[1642149665696,34.17142704,145.68,145.61,9.17322186]
[1642149665900,36.91742704,145.68,145.61,3.93581349]
[1642149666899,33.92142704,145.68,145.61,4.18581349]
[1642149667099,23.62162704,145.68,145.61,4.18581349]
[1642149667498,23.62162704,145.68,145.61,4.44581349]
[1642149667698,23.62162704,145.68,145.62,3.93581349]
[1642149668097,23.62162704,145.68,145.62,4.44581349]
[1642149668301,23.62162704,145.68,145.62,3.93581349]
[1642149668302,23.87162704,145.68,145.62,3.93581349]
[1642149668499,23.62162704,145.68,145.62,3.93581349]
[1642149668701,23.62162704,145.68,145.62,4.18581349]
[1642149669300,23.62162704,145.68,145.62,0.25]
[1642149669500,23.62162704,145.68,145.62,10.5466]
[1642149669998,9.86,145.69,145.62,10.8066]
[1642149670199,9.86,145.69,145.63,6.68181349]
[1642149670598,9.86,145.69,145.63,4.18581349]
[1642149671003,12.606,145.73,145.63,4.44581349]
[1642149671201,12.605,145.75,145.64,70.595]
[1642149671500,9.86,145.75,145.64,71.105]
[1642149671901,29.00594459,145.74,145.65,10.2943]
[1642149672105,29.00594459,145.74,145.66,2.745]
[1642149672303,29.00594459,145.74,145.66,2.995]
[1642149672802,29.25594459,145.74,145.66,2.995]
[1642149673003,29.25594459,145.74,145.67,3.93581349]
[1642149673403,29.25594459,145.74,145.67,4.18581349]
[1642149673803,39.55094459,145.74,145.67,4.18581349]
[1642149674402,39.55094459,145.74,145.67,3.93581349]
[1642149674603,39.30094459,145.74,145.67,3.93581349]
[1642149674803,39.30094459,145.74,145.66,2.745]
[1642149675003,39.30094459,145.74,145.66,3.005]
[1642149675604,29.00594459,145.74,145.67,3.93509343]
[1642149676005,29.00594459,145.74,145.67,4.44509343]
[1642149677208,29.00594459,145.74,145.67,0.51]
[1642149677608,29.00594459,145.74,145.66,10.8038]
[1642149678211,29.00594459,145.74,145.68,3.93482451]
[1642149678508,29.00594459,145.74,145.68,4.18482451]
[1642149678912,29.00594459,145.74,145.68,0.25]
[1642149679632,29.00594459,145.74,145.67,4.44482451]
[1642149679833,29.00594459,145.74,145.67,0.51]
[1642149680035,29.00594459,145.74,145.66,10.8038]
[1642149680936,29.00594459,145.74,145.67,3.93484089]
[1642149681135,29.00594459,145.74,145.67,14.22784089]
[1642149681342,29.00594459,145.74,145.67,14.73784089]
[1642149682238,29.00594459,145.74,145.67,17.48284089]
[1642149682738,29.00594459,145.74,145.68,3.93484089]
[1642149682938,29.00594459,145.74,145.68,82.58724089]
[1642149683137,29.00594459,145.74,145.68,14.73724089]
[1642149683738,12.605,145.79,145.68,20.73724089]
[1642149683941,12.605,145.79,145.69,71.78484089]
[1642149684141,12.605,145.79,145.7,10.2907]
[1642149684342,12.855,145.79,145.7,10.2907]
[1642149684546,12.855,145.79,145.7,10.8007]
[1642149684842,27.84895867,145.78,145.7,10.8007]
[1642149685042,28.09895867,145.78,145.67,2.745]
[1642149685243,123.3,145.7,145.54,34.0]
[1642149685440,123.3,145.7,145.53,17.38024924]
[1642149685441,123.3,145.65,145.53,17.38024924]
[1642149685642,12.607,145.64,145.53,17.38024924]
[1642149686041,12.857,145.64,145.53,44.657303]
[1642149686642,123.3,145.61,145.53,41.08031589]
[1642149686941,123.3,145.59,145.53,27.27705376]
[1642149687141,9.86,145.58,145.52,0.07962902]
[1642149687940,10.37,145.58,145.52,0.07962902]
[1642149690043,20.6765,145.58,145.52,0.07962902]
[1642149690444,123.3,145.57,145.52,0.07962902]
[1642149690644,9.86,145.56,145.52,0.07962902]
[1642149693153,12.608,145.56,145.52,0.07962902]
[1642149693350,123.3,145.55,145.52,0.07962902]
[1642149693548,133.16,145.54,145.52,0.07962902]
[1642149693750,135.908,145.54,145.52,0.07962902]
[1642149694550,136.168,145.54,145.52,0.07962902]
[1642149694751,133.42,145.54,145.52,0.07962902]
[1642149694949,133.67,145.54,145.52,0.07962902]
[1642149695152,123.3,145.53,145.43,10.62901582]
[1642149695351,123.3,145.5,145.43,7.88101582]
[1642149695550,9.86,145.49,145.43,7.88101582]
[1642149695752,9.86,145.49,145.39,52.0562]
[1642149696150,9.86,145.49,145.43,26.0070472]
[1642149696554,9.86,145.49,145.43,32.2570472]
[1642149697955,10.12,145.49,145.43,32.2570472]
[1642149698355,10.12,145.49,145.44,3.94126585]
[1642149698654,9.86,145.49,145.44,4.19126585]
[1642149698853,9.86,145.49,145.44,10.19126585]
[1642149699055,9.86,145.49,145.44,10.45126585]
[1642149699254,9.86,145.49,145.46,29.95937105]
[1642149699456,9.86,145.49,145.47,6.06439993]
[1642149699656,9.86,145.53,145.47,6.06439993]
[1642149699855,9.86,145.53,145.45,3.94119829]
[1642149700156,123.3,145.48,145.32,34.34393529]
[1642149700355,12.611,145.47,145.33,50.5611]
[1642149700554,12.861,145.47,145.33,54.14437449]
[1642149700754,16.511,145.47,145.33,6.33427449]
[1642149700954,27.0856,145.47,145.34,27.75064201]
[1642149701153,16.521,145.47,145.35,2.75]
[1642149701358,13.77,145.47,145.35,2.75]
[1642149701755,9.86,145.47,145.35,70.6]
[1642149701957,144.86030558,145.57,145.35,70.6]
[1642149701958,2.75,145.53,145.36,10.38294836]
[1642149702255,13.89050558,145.57,145.39,34.0]
[1642149702256,12.61,145.56,145.39,34.0]
[1642149702455,12.61,145.56,145.41,26.57192449]
[1642149702655,9.86,145.56,145.42,25.3442]
[1642149703055,9.86,145.56,145.44,10.306]
[1642149703256,9.86,145.56,145.45,25.65821536]
[1642149703557,9.86,145.56,145.45,31.90821536]
[1642149704560,10.12,145.56,145.45,32.16821536]
[1642149705262,9.86,145.56,145.45,42.47511536]
[1642149706058,2.749,145.6,145.45,52.33511536]
[1642149706059,9.86,145.6,145.45,52.33511536]
[1642149706660,9.86,145.6,145.46,67.85]
[1642149706860,9.86,145.6,145.54,28.74152019]
[1642149707065,9.86,145.6,145.54,34.99152019]
[1642149707660,9.86,145.6,145.54,28.99152019]
[1642149708062,2.748,145.63,145.54,28.99152019]
[1642149708261,2.748,145.63,145.54,39.29242019]
[1642149708663,2.748,145.63,145.54,28.99152019]
[1642149709061,2.748,145.63,145.54,28.74152019]
[1642149709463,3.258,145.63,145.54,28.99152019]
[1642149709668,13.5608,145.63,145.54,28.99152019]
[1642149710466,9.86,145.62,145.54,28.74152019]
[1642149710664,13.0513,145.61,145.54,28.74152019]
[1642149711066,13.3013,145.61,145.54,28.74152019]
[1642149711666,13.0513,145.61,145.54,28.99152019]
[1642149712768,2.747,145.61,145.54,28.99152019]
[1642149712968,12.607,145.62,145.54,28.99152019]
[1642149713169,0.26,145.61,145.54,28.99152019]
[1642149713394,12.607,145.62,145.54,28.99152019]
[1642149713594,12.867,145.62,145.54,28.99152019]
[1642149714594,23.4206,145.62,145.54,28.99152019]
[1642149715796,20.6736,145.62,145.54,28.99152019]
[1642149717500,10.12,145.62,145.54,28.99152019]
[1642149717699,9.86,145.62,145.54,28.99152019]
[1642149717899,9.86,145.62,145.54,34.99152019]
[1642149718100,9.86,145.62,145.55,2.747]
[1642149718599,9.86,145.62,145.55,2.997]
[1642149719098,9.86,145.62,145.55,8.997]
[1642149719499,9.86,145.62,145.55,2.997]
[1642149719698,20.4021,145.66,145.55,13.5575]
[1642149719900,20.4021,145.66,145.55,87.4075]
[1642149719901,9.86,145.66,145.55,87.4075]
[1642149721803,10.12,145.66,145.55,87.4075]
[1642149726708,9.86,145.66,145.55,87.4075]
[1642149727111,2.747,145.67,145.55,97.2675]
[1642149727309,22.8898,145.7,145.55,97.2675]
[1642149727509,22.8898,145.7,145.57,67.85]
[1642149727712,20.1428,145.7,145.6,10.2965]
[1642149727909,20.1428,145.7,145.61,34.63244558]
[1642149728110,10.2828,145.7,145.62,67.85]
[1642149728314,2.746,145.73,145.63,2.746]
[1642149728509,2.746,145.73,145.64,30.59625175]
[1642149728713,500.24744946,145.75,145.64,30.59625175]
[1642149728912,500.24744946,145.75,145.64,37.10625175]
[1642149729215,9.86,145.76,145.64,37.17576621]
[1642149729411,9.86,145.76,145.65,10.2935]
[1642149729911,9.86,145.76,145.65,16.8035]
[1642149730314,9.86,145.76,145.65,16.2935]
[1642149730513,4.42185959,145.75,145.65,0.25]
[1642149730715,14.28185959,145.75,145.65,0.25]
[1642149730912,14.28185959,145.75,145.64,30.59625175]
[1642149731314,14.53185959,145.75,145.64,30.59625175]
[1642149731516,10.2966,145.72,145.64,30.59625175]
[1642149732415,10.2966,145.72,145.64,30.84625175]
[1642149735219,10.2966,145.72,145.64,0.25]
[1642149735420,10.5466,145.72,145.61,2.745]
[1642149735618,12.606,145.71,145.6,24.2645]
[1642149735818,10.2997,145.68,145.59,2.746]
[1642149736019,2.746,145.67,145.55,51.5187]
[1642149736224,20.4097,145.68,145.56,23.41250613]
[1642149736419,20.4097,145.68,145.57,2.746]
[1642149736819,20.4097,145.68,145.57,13.0454]
[1642149737020,20.4097,145.68,145.57,13.2954]
[1642149737219,10.11,145.68,145.57,13.2954]
[1642149738722,9.86,145.68,145.57,13.2954]
[1642149738923,2.747,145.7,145.58,67.85]
[1642149739129,9.86,145.71,145.62,10.2958]
[1642149739329,9.86,145.71,145.63,27.11739421]
[1642149739552,9.86,145.71,145.63,27.36739421]
[1642149740530,9.86,145.71,145.63,37.66269421]
[1642149740928,20.1264,145.75,145.64,2.745]
[1642149741131,9.86,145.75,145.64,11.413]
[1642149741426,9.86,145.75,145.64,11.923]
[1642149742030,9.86,145.75,145.64,11.663]
[1642149742227,9.86,145.75,145.67,29.40767085]
[1642149742429,9.86,145.75,145.68,2.745]
[1642149742728,9.86,145.75,145.67,32.40267085]
[1642149742928,10.12,145.75,145.67,32.40267085]
[1642149744029,10.12,145.75,145.67,42.95537085]
[1642149744228,10.12,145.75,145.67,110.80537085]
[1642149744630,9.86,145.75,145.67,110.80537085]
[1642149745028,9.86,145.75,145.67,116.80537085]
[1642149746736,9.86,145.78,145.67,48.44537085]
[1642149746935,9.86,145.78,145.67,32.15267085]
[1642149746936,10.11,145.78,145.67,32.15267085]
[1642149747233,1.67685959,145.75,145.67,29.40767085]
[1642149747433,12.605,145.74,145.67,29.40767085]
[1642149747839,13.115,145.74,145.67,29.40767085]